fUST/lending_fUST_20240722
["ID","MTS","AMOUNT","RATE_DAILY","PERIOD"]
[332885350,1721629838902,-185.50399782,0.00013698,2]
[332885351,1721629838911,-500.0,0.00013698,2]
[332885352,1721629838921,-500.0,0.00013698,2]
[332885353,1721629838931,-500.0,0.00013698,2]
[332885354,1721629838940,-232.33119763,0.00013698,2]
[332885355,1721629838949,-500.0,0.00013698,2]
[332885356,1721629838959,-435.54903973,0.00013698,2]
[332885357,1721629838968,-500.0,0.00013698,2]
[332885358,1721629838978,-500.0,0.00013698,2]
[332885359,1721629838988,-420.02974354,0.00013698,2]
[332885360,1721629838997,-506.16326635,0.00013698,2]
[332885361,1721629839006,-500.0,0.00013698,2]
[332885362,1721629839016,-517.00731958,0.00013698,2]
[332885363,1721629839025,-500.0,0.00013698,2]
[332885364,1721629839035,-500.0,0.00013698,2]
[332885365,1721629839046,-500.0,0.00013698,2]
[332885366,1721629839056,-506.51256414,0.00013698,2]
[332885367,1721629839067,-500.0,0.00013698,2]
[332885368,1721629839076,-500.0,0.00013698,2]
[332885369,1721629839085,-500.0,0.00013698,2]
[332885370,1721629839094,-505.27845831,0.00013698,2]
[332885371,1721629839103,-500.0,0.00013698,2]
[332885372,1721629839114,-500.0,0.00013698,2]
[332885373,1721629839129,-500.0,0.00013698,2]
[332885374,1721629839143,-500.0,0.00013698,2]
[332885375,1721629839153,-500.0,0.00013698,2]
[332885376,1721629839163,-500.0,0.00013698,2]
[332885377,1721629839173,-500.0,0.00013698,2]
[332885378,1721629839183,-500.0,0.00013698,2]
[332885379,1721629839193,-500.0,0.00013698,2]
[332885380,1721629839203,-500.0,0.00013698,2]
[332885381,1721629839212,-730.86,0.00013698,2]
[332885382,1721629839222,-500.0,0.00013698,2]
[332885383,1721629839231,-500.0,0.00013698,2]
[332885384,1721629839242,-500.0,0.00013698,2]
[332885385,1721629839252,-509.54338405,0.00013698,2]
[332885386,1721629839261,-503.8121749,0.00013698,2]
[332885387,1721629839271,-500.0,0.00013698,2]
[332885388,1721629839281,-500.0,0.00013698,2]
[332885389,1721629839292,-500.0,0.00013698,2]
[332885390,1721629839302,-500.0,0.00013698,2]
[332885391,1721629839312,-500.0,0.00013698,2]
[332885392,1721629839322,-500.0,0.00013698,2]
[332885393,1721629839332,-500.0,0.00013698,2]
[332885394,1721629839342,-500.0,0.00013698,2]
[332885395,1721629839351,-500.0,0.00013698,2]
[332885396,1721629839361,-500.0,0.00013698,2]
[332885397,1721629839370,-500.0,0.00013698,2]
[332885398,1721629839380,-500.0,0.00013698,2]
[332885399,1721629839389,-500.0,0.00013698,2]
[332885400,1721629839399,-500.89573504,0.00013698,2]
[332885401,1721629839409,-319.33455858,0.00013698,2]
[332885402,1721629839419,-500.0,0.00013698,2]
[332885403,1721629839428,-500.0,0.00013698,2]
[332885404,1721629839438,-500.0,0.00013698,2]
[332885405,1721629839447,-500.0,0.00013698,2]
[332885406,1721629839457,-500.0,0.00013698,2]
[332885407,1721629839467,-500.0,0.00013698,2]
[332885408,1721629839476,-500.0,0.00013698,2]
[332885409,1721629839486,-500.0,0.00013698,2]
[332885410,1721629839496,-500.0,0.00013698,2]
[332885411,1721629839506,-504.98413447,0.00013698,2]
[332885412,1721629839515,-500.0,0.00013698,2]
[332885413,1721629839525,-500.0,0.00013698,2]
[332885414,1721629839536,-505.23614424,0.00013698,2]
[332885415,1721629839545,-500.0,0.00013698,2]
[332885416,1721629839555,-500.0,0.00013698,2]
[332885417,1721629839565,-471.06056895,0.00013698,2]
[332885418,1721629839575,-253.76,0.00013698,2]
[332885419,1721629839584,-404.99770322,0.00013698,2]
[332885420,1721629839594,-500.0,0.00013698,2]
[332885421,1721629839605,-500.0,0.00013698,2]
[332885422,1721629839616,-244.32,0.00013698,2]
[332885423,1721629839625,-500.0,0.00013698,2]
[332885424,1721629839637,-500.0,0.00013698,2]
[332885425,1721629839651,-500.0,0.00013698,2]
[332885426,1721629839661,-500.0,0.00013698,2]
[332885427,1721629839670,-500.0,0.00013698,2]
[332885428,1721629839681,-500.0,0.00013698,2]
[332885429,1721629839691,-505.68965866,0.00013698,2]
[332885430,1721629839700,-500.0,0.00013698,2]
[332885431,1721629839710,-572.94154493,0.00013698,2]
[332885432,1721629839721,-500.0,0.00013698,2]
[332885433,1721629839731,-500.0,0.00013698,2]
[332885434,1721629839741,-502.40109538,0.00013698,2]
[332885435,1721629839750,-500.0,0.00013698,2]
[332885436,1721629839759,-634.47584188,0.00013698,2]
[332885437,1721629839769,-500.0,0.00013698,2]
[332885438,1721629839778,-282.81910119,0.00013698,2]
[332885439,1721629839790,-502.22503493,0.00013698,2]
[332885440,1721629839799,-500.0,0.00013698,2]
[332885441,1721629839809,-503.18886382,0.00013698,2]
[332885442,1721629839819,-500.0,0.00013698,2]
[332885443,1721629839828,-591.06616635,0.00013698,2]
[332885444,1721629839837,-500.0,0.00013698,2]
[332885445,1721629839846,-503.54918777,0.00013698,2]
[332885446,1721629839856,-500.0,0.00013698,2]
[332885447,1721629839866,-509.79821889,0.00013698,2]
[332885448,1721629839875,-500.0,0.00013698,2]
[332885449,1721629839885,-500.0,0.00013698,2]
[332885450,1721629839894,-500.0,0.00013698,2]
[332885451,1721629839903,-500.0,0.00013698,2]
[332885452,1721629839913,-500.0,0.00013698,2]
[332885453,1721629839923,-540.36292792,0.00013698,2]
[332885454,1721629839932,-500.0,0.00013698,2]
[332885455,1721629839941,-500.0,0.00013698,2]
[332885456,1721629839950,-504.85668131,0.00013698,2]
[332885457,1721629839960,-500.0,0.00013698,2]
[332885458,1721629839969,-500.0,0.00013698,2]
[332885459,1721629839979,-500.0,0.00013698,2]
[332885460,1721629839992,-500.0,0.00013698,2]
[332885461,1721629840002,-500.0,0.00013698,2]
[332885462,1721629840011,-263.56,0.00013698,2]
[332885463,1721629840021,-500.0,0.00013698,2]
[332885464,1721629840031,-470.79342525,0.00013698,2]
[332885465,1721629840042,-500.0,0.00013698,2]
[332885466,1721629840052,-500.0,0.00013698,2]
[332885467,1721629840062,-500.0,0.00013698,2]
[332885468,1721629840072,-500.0,0.00013698,2]
[332885469,1721629840082,-500.0,0.00013698,2]
[332885470,1721629840091,-505.86525202,0.00013698,2]
[332885471,1721629840101,-500.0,0.00013698,2]
[332885472,1721629840110,-500.0,0.00013698,2]
[332885473,1721629840121,-504.22224232,0.00013698,2]
[332885474,1721629840130,-500.0,0.00013698,2]
[332885475,1721629840140,-500.0,0.00013698,2]
[332885476,1721629840149,-500.0,0.00013698,2]
[332885477,1721629840159,-500.0,0.00013698,2]
[332885478,1721629840168,-500.0,0.00013698,2]
[332885479,1721629840178,-500.0,0.00013698,2]
[332885480,1721629840187,-562.60270454,0.00013698,2]
[332885481,1721629840197,-500.0,0.00013698,2]
[332885482,1721629840207,-500.0,0.00013698,2]
[332885483,1721629840217,-500.0,0.00013698,2]
[332885484,1721629840227,-500.0,0.00013698,2]
[332885485,1721629840236,-500.0,0.00013698,2]
[332885486,1721629840246,-500.0,0.00013698,2]
[332885487,1721629840256,-500.0,0.00013698,2]
[332885488,1721629840266,-500.89620177,0.00013698,2]
[332885489,1721629840275,-500.0,0.00013698,2]
[332885490,1721629840287,-322.93905802,0.00013698,2]
[332885491,1721629840296,-500.0,0.00013698,2]
[332885492,1721629840305,-500.0,0.00013698,2]
[332885493,1721629840314,-506.22761474,0.00013698,2]
[332885494,1721629840324,-500.0,0.00013698,2]
[332885495,1721629840334,-186.19333093,0.00013698,2]
[332885496,1721629840344,-509.47361346,0.00013698,2]
[332885497,1721629840353,-504.6871762,0.00013698,2]
[332885499,1721629840363,-505.43988984,0.00013698,2]
[332885501,1721629840373,-500.0,0.00013698,2]
[332885503,1721629840383,-247.30750772,0.00013698,2]
[332885505,1721629840392,-500.0,0.00013698,2]
[332885507,1721629840402,-501.99577457,0.00013698,2]
[332885510,1721629840412,-500.0,0.00013698,2]
[332885512,1721629840422,-500.0,0.00013698,2]
[332885514,1721629840432,-500.0,0.00013698,2]
[332885516,1721629840441,-500.0,0.00013698,2]
[332885518,1721629840451,-500.0,0.00013698,2]
[332885520,1721629840460,-500.0,0.00013698,2]
[332885522,1721629840470,-324.87236378,0.00013698,2]
[332885524,1721629840480,-500.0,0.00013698,2]
[332885526,1721629840489,-500.0,0.00013698,2]
[332885528,1721629840500,-501.01426139,0.00013698,2]
[332885530,1721629840509,-500.0,0.00013698,2]
[332885532,1721629840518,-500.0,0.00013698,2]
[332885534,1721629840529,-502.88470535,0.00013698,2]
[332885536,1721629840539,-500.0,0.00013698,2]
[332885538,1721629840549,-500.0,0.00013698,2]
[332885540,1721629840558,-500.0,0.00013698,2]
[332885542,1721629840568,-500.0,0.00013698,2]
[332885543,1721629840578,-378.02,0.00013698,2]
[332885545,1721629840588,-500.0,0.00013698,2]
[332885546,1721629840598,-500.0,0.00013698,2]
[332885547,1721629840608,-578.41,0.00013698,2]
[332885548,1721629840619,-500.0,0.00013698,2]
[332885549,1721629840631,-500.0,0.00013698,2]
[332885550,1721629840644,-500.0,0.00013698,2]
[332885551,1721629840655,-500.0,0.00013698,2]
[332885552,1721629840664,-500.0,0.00013698,2]
[332885553,1721629840675,-500.0,0.00013698,2]
[332885554,1721629840687,-503.83150421,0.00013698,2]
[332885555,1721629840696,-500.0,0.00013698,2]
[332885556,1721629840707,-500.0,0.00013698,2]
[332885557,1721629840721,-204.8816853,0.00013698,2]
[332885558,1721629840733,-377.65,0.00013698,2]
[332885559,1721629840743,-500.0,0.00013698,2]
[332885560,1721629840754,-504.2214068,0.00013698,2]
[332885561,1721629840764,-503.80197866,0.00013698,2]
[332885562,1721629840773,-500.0,0.00013698,2]
[332885563,1721629840783,-461.94701501,0.00013698,2]
[332885564,1721629840796,-502.71172316,0.00013698,2]
[332885565,1721629840806,-487.8921371,0.00013698,2]
[332885566,1721629840816,-500.0,0.00013698,2]
[332885567,1721629840826,-500.0,0.00013698,2]
[332885568,1721629840836,-222.53,0.00013698,2]
[332885569,1721629840846,-500.0,0.00013698,2]
[332885570,1721629840856,-500.0,0.00013698,2]
[332885571,1721629840866,-500.0,0.00013698,2]
[332885572,1721629840876,-500.0,0.00013698,2]
[332885573,1721629840886,-500.0,0.00013698,2]
[332885574,1721629840896,-500.0,0.00013698,2]
[332885575,1721629840905,-169.30103475,0.00013698,2]
[332885576,1721629840915,-500.0,0.00013698,2]
[332885577,1721629840925,-500.0,0.00013698,2]
[332885578,1721629840935,-500.0,0.00013698,2]
[332885579,1721629840944,-500.0,0.00013698,2]
[332885580,1721629840954,-500.0,0.00013698,2]
[332885581,1721629840964,-504.87220212,0.00013698,2]
[332885582,1721629840974,-501.30523314,0.00013698,2]
[332885583,1721629840984,-277.01550922,0.00013698,2]
[332885584,1721629840993,-500.0,0.00013698,2]
[332885585,1721629841003,-500.0,0.00013698,2]
[332885586,1721629841013,-553.82563815,0.00013698,2]
[332885587,1721629841022,-500.0,0.00013698,2]
[332885588,1721629841032,-500.0,0.00013698,2]
[332885589,1721629841043,-500.0,0.00013698,2]
[332885590,1721629841052,-502.08566498,0.00013698,2]
[332885591,1721629841061,-382.60396337,0.00013698,2]
[332885612,1721629842937,-1192.39630622,0.0001359,2]
[332885613,1721629842947,-117.39603663,0.00013698,2]
[332885614,1721629842956,-44.72765715,0.00013698,2]
[332885628,1721629843703,-455.27234285,0.00013698,2]
[332885630,1721629843715,-500.0,0.00013698,2]
[332885631,1721629843725,-500.0,0.00013698,2]
[332885632,1721629843737,-500.0,0.00013698,2]
[332885633,1721629843748,-500.0,0.00013698,2]
[332885634,1721629843758,-500.0,0.00013698,2]
[332885635,1721629843768,-529.89709228,0.00013698,2]
[332885636,1721629843779,-500.0,0.00013698,2]
[332885637,1721629843791,-288.4072438,0.00013698,2]
[332885638,1721629843803,-211.5927562,0.00013698,2]
[332885639,1721629843814,-200.7088081,0.00013698,2]
[332885652,1721629918045,300.0,0.00021917,30]
[332885653,1721629918294,200.0,0.00021917,30]
[332885657,1721630345633,1000.0,0.00016,16]
[332885658,1721630381534,1000.0,0.00024,60]
[332885662,1721630473740,1000.0,0.00014,7]
[332885669,1721630809411,300.0,0.00021917,30]
[332885670,1721630809525,200.0,0.00021917,30]
[332885672,1721630883593,211.0,0.00025,120]
[332885758,1721631039050,-868.84315584,9.999e-05,2]
[332885759,1721631039061,-194.21291555,9.999e-05,2]
[332885760,1721631039071,-154.82195475,9.999e-05,2]
[332885761,1721631039080,-459.13593927,9.999e-05,2]
[332885762,1721631039090,-422.79354392,0.0001,2]
[332885763,1721631039100,-500.72751431,0.0001,2]
[332885764,1721631039110,-166.6666733,0.00012647,2]
[332885765,1721631039119,-1000.0,0.00013,2]
[332885766,1721631039130,-300.0,0.00013498,2]
[332885767,1721631039140,-151.00173499,0.00013587,2]
[332885768,1721631039150,-1373.5455205,0.00013597,2]
[332885769,1721631039160,-1373.54552048,0.00013597,2]
[332885770,1721631039169,-1373.54552048,0.00013598,2]
[332885771,1721631039179,-1373.54552048,0.00013598,2]
[332885772,1721631039188,-1373.54552048,0.00013598,2]
[332885773,1721631039198,-397.25645957,0.000136,2]
[332885774,1721631039207,-390798.89355,0.00013688,2]
[332885775,1721631039217,-5000.0,0.00013697,2]
[332885776,1721631039228,-299.2911919,0.00013698,2]
[332885777,1721631039238,-339.91633675,0.00013698,2]
[332885778,1721631039248,-511.22,0.00013698,2]
[332885779,1721631039259,-503.09669277,0.00013698,2]
[332885780,1721631039269,-500.0,0.00013698,2]
[332885781,1721631039279,-500.0,0.00013698,2]
[332885782,1721631039289,-500.0,0.00013698,2]
[332885783,1721631039299,-566.88517477,0.00013698,2]
[332885784,1721631039313,-500.0,0.00013698,2]
[332885785,1721631039325,-500.0,0.00013698,2]
[332885786,1721631039335,-500.0,0.00013698,2]
[332885787,1721631039345,-500.0,0.00013698,2]
[332885788,1721631039356,-536.07823364,0.00013698,2]
[332885789,1721631039366,-500.0,0.00013698,2]
[332885790,1721631039375,-500.0,0.00013698,2]
[332885791,1721631039386,-513.180343,0.00013698,2]
[332885792,1721631039396,-500.0,0.00013698,2]
[332885793,1721631039406,-500.0,0.00013698,2]
[332885794,1721631039417,-500.0,0.00013698,2]
[332885795,1721631039426,-500.0,0.00013698,2]
[332885796,1721631039436,-500.0,0.00013698,2]
[332885797,1721631039446,-500.0,0.00013698,2]
[332885798,1721631039457,-500.0,0.00013698,2]
[332885799,1721631039466,-500.0,0.00013698,2]
[332885800,1721631039476,-500.0,0.00013698,2]
[332885801,1721631039486,-500.0,0.00013698,2]
[332885802,1721631039496,-500.0,0.00013698,2]
[332885803,1721631039506,-500.0,0.00013698,2]
[332885804,1721631039518,-277.06716605,0.00013698,2]
[332885805,1721631039541,-500.0,0.00013698,2]
[332885806,1721631039551,-500.0,0.00013698,2]
[332885807,1721631039565,-501.20525823,0.00013698,2]
[332885808,1721631039574,-500.0,0.00013698,2]
[332885809,1721631039584,-500.55675731,0.00013698,2]
[332885810,1721631039594,-587.85,0.00013698,2]
[332885811,1721631039606,-513.80969609,0.00013698,2]
[332885812,1721631039617,-500.0,0.00013698,2]
[332885813,1721631039628,-502.20272351,0.00013698,2]
[332885814,1721631039639,-500.0,0.00013698,2]
[332885815,1721631039650,-500.0,0.00013698,2]
[332885816,1721631039661,-539.84,0.00013698,2]
[332885817,1721631039672,-500.0,0.00013698,2]
[332885818,1721631039681,-368.38938062,0.00013698,2]
[332885819,1721631039691,-500.0,0.00013698,2]
[332885820,1721631039700,-556.62,0.00013698,2]
[332885821,1721631039710,-500.0,0.00013698,2]
[332885822,1721631039720,-500.0,0.00013698,2]
[332885823,1721631039729,-500.0,0.00013698,2]
[332885824,1721631039739,-500.0,0.00013698,2]
[332885825,1721631039748,-500.0,0.00013698,2]
[332885826,1721631039758,-500.0,0.00013698,2]
[332885827,1721631039768,-500.0,0.00013698,2]
[332885828,1721631039779,-330.35986295,0.00013698,2]
[332885829,1721631039788,-167.87,0.00013698,2]
[332885831,1721631039798,-518.63,0.00013698,2]
[332885833,1721631039808,-486.94280647,0.00013698,2]
[332885835,1721631039817,-500.0,0.00013698,2]
[332885836,1721631039827,-500.0,0.00013698,2]
[332885838,1721631039836,-500.0,0.00013698,2]
[332885840,1721631039848,-161.25775841,0.00013698,2]
[332885842,1721631039858,-500.0,0.00013698,2]
[332885844,1721631039867,-500.0,0.00013698,2]
[332885846,1721631039877,-500.0,0.00013698,2]
[332885848,1721631039887,-500.0,0.00013698,2]
[332885850,1721631039899,-500.0,0.00013698,2]
[332885852,1721631039910,-500.0,0.00013698,2]
[332885853,1721631039920,-500.0,0.00013698,2]
[332885855,1721631039930,-500.0,0.00013698,2]
[332885857,1721631039942,-500.0,0.00013698,2]
[332885859,1721631039953,-500.0,0.00013698,2]
[332885861,1721631039963,-500.0,0.00013698,2]
[332885863,1721631039974,-552.12,0.00013698,2]
[332885864,1721631039983,-500.0,0.00013698,2]
[332885866,1721631039993,-500.0,0.00013698,2]
[332885867,1721631040003,-500.0,0.00013698,2]
[332885868,1721631040014,-500.0,0.00013698,2]
[332885869,1721631040026,-611.19489112,0.00013698,2]
[332885870,1721631040039,-613.50607496,0.00013698,2]
[332885871,1721631040050,-500.0,0.00013698,2]
[332885872,1721631040061,-500.0,0.00013698,2]
[332885873,1721631040071,-500.0,0.00013698,2]
[332885874,1721631040083,-500.0,0.00013698,2]
[332885875,1721631040094,-500.0,0.00013698,2]
[332885876,1721631040104,-500.0,0.00013698,2]
[332885877,1721631040115,-500.0,0.00013698,2]
[332885878,1721631040126,-500.0,0.00013698,2]
[332885879,1721631040136,-500.0,0.00013698,2]
[332885880,1721631040146,-503.02447703,0.00013698,2]
[332885881,1721631040156,-231.27976673,0.00013698,2]
[332885882,1721631040166,-500.0,0.00013698,2]
[332885883,1721631040177,-371.00016222,0.00013698,2]
[332885884,1721631040187,-500.0,0.00013698,2]
[332885885,1721631040196,-500.0,0.00013698,2]
[332885886,1721631040206,-500.0,0.00013698,2]
[332885888,1721631040216,-500.0,0.00013698,2]
[332885890,1721631040227,-500.0,0.00013698,2]
[332885892,1721631040236,-543.11,0.00013698,2]
[332885894,1721631040245,-500.0,0.00013698,2]
[332885896,1721631040255,-500.0,0.00013698,2]
[332885899,1721631040271,-500.0,0.00013698,2]
[332885901,1721631040285,-248.33983644,0.00013698,2]
[332885903,1721631040298,-500.0,0.00013698,2]
[332885906,1721631040312,-500.0,0.00013698,2]
[332885908,1721631040325,-500.0,0.00013698,2]
[332885911,1721631040340,-500.0,0.00013698,2]
[332885916,1721631040353,-632.2865234,0.00013698,2]
[332885919,1721631040369,-518.32252822,0.00013698,2]
[332885922,1721631040380,-500.0,0.00013698,2]
[332885925,1721631040391,-267.77,0.00013698,2]
[332885929,1721631040404,-331.66,0.00013698,2]
[332885933,1721631040417,-507.02998621,0.00013698,2]
[332885936,1721631040428,-625.08614798,0.00013698,2]
[332885939,1721631040440,-500.0,0.00013698,2]
[332885945,1721631040453,-502.63812384,0.00013698,2]
[332885948,1721631040467,-504.29319091,0.00013698,2]
[332885951,1721631040480,-501.83143831,0.00013698,2]
[332885954,1721631040493,-505.82577236,0.00013698,2]
[332885958,1721631040504,-504.40858094,0.00013698,2]
[332885961,1721631040516,-500.0,0.00013698,2]
[332885965,1721631040530,-500.0,0.00013698,2]
[332885968,1721631040541,-500.0,0.00013698,2]
[332885972,1721631040553,-500.0,0.00013698,2]
[332885974,1721631040571,-512.01137092,0.00013698,2]
[332885977,1721631040583,-505.24936389,0.00013698,2]
[332885980,1721631040596,-500.0,0.00013698,2]
[332885983,1721631040608,-500.0,0.00013698,2]
[332885985,1721631040620,-500.0,0.00013698,2]
[332885987,1721631040630,-505.33330674,0.00013698,2]
[332885989,1721631040643,-500.0,0.00013698,2]
[332885991,1721631040655,-500.0,0.00013698,2]
[332885993,1721631040667,-500.0,0.00013698,2]
[332885994,1721631040680,-503.66669502,0.00013698,2]
[332885995,1721631040692,-502.18907915,0.00013698,2]
[332885996,1721631040704,-500.0,0.00013698,2]
[332885997,1721631040715,-500.0,0.00013698,2]
[332885998,1721631040727,-500.0,0.00013698,2]
[332885999,1721631040737,-612.57565108,0.00013698,2]
[332886000,1721631040747,-201.96832673,0.00013698,2]
[332886001,1721631040758,-500.0,0.00013698,2]
[332886002,1721631040769,-500.0,0.00013698,2]
[332886004,1721631040780,-500.57129976,0.00013698,2]
[332886005,1721631040791,-501.89306793,0.00013698,2]
[332886006,1721631040803,-501.16438225,0.00013698,2]
[332886007,1721631040818,-214.25573509,0.00013698,2]
[332886008,1721631040829,-508.14216732,0.00013698,2]
[332886009,1721631040840,-260.7655311,0.00013698,2]
[332886010,1721631040853,-500.0,0.00013698,2]
[332886012,1721631040864,-500.0,0.00013698,2]
[332886013,1721631040875,-504.75716021,0.00013698,2]
[332886014,1721631040887,-504.84380992,0.00013698,2]
[332886015,1721631040900,-500.0,0.00013698,2]
[332886016,1721631040912,-500.0,0.00013698,2]
[332886017,1721631040924,-500.88649305,0.00013698,2]
[332886018,1721631040936,-500.0,0.00013698,2]
[332886020,1721631040948,-579.55,0.00013698,2]
[332886021,1721631040958,-500.0,0.00013698,2]
[332886022,1721631040969,-617.99000998,0.00013698,2]
[332886023,1721631040979,-500.0,0.00013698,2]
[332886024,1721631040989,-516.25954644,0.00013698,2]
[332886025,1721631040999,-355.37854346,0.00013698,2]
[332886031,1721631041316,-144.62145654,0.00013698,2]
[332886032,1721631041327,-503.82607562,0.00013698,2]
[332886033,1721631041337,-500.0,0.00013698,2]
[332886034,1721631041348,-500.0,0.00013698,2]
[332886035,1721631041359,-500.0,0.00013698,2]
[332886036,1721631041369,-500.0,0.00013698,2]
[332886037,1721631041379,-500.0,0.00013698,2]
[332886038,1721631041389,-500.0,0.00013698,2]
[332886039,1721631041400,-587.47,0.00013698,2]
[332886040,1721631041411,-504.996301,0.00013698,2]
[332886041,1721631041421,-528.36959764,0.00013698,2]
[332886042,1721631041432,-500.0,0.00013698,2]
[332886043,1721631041442,-500.0,0.00013698,2]
[332886044,1721631041453,-500.0,0.00013698,2]
[332886045,1721631041464,-501.75708608,0.00013698,2]
[332886046,1721631041474,-500.0,0.00013698,2]
[332886047,1721631041485,-500.0,0.00013698,2]
[332886048,1721631041496,-500.0,0.00013698,2]
[332886049,1721631041507,-598.8295479,0.00013698,2]
[332886050,1721631041519,-500.0,0.00013698,2]
[332886051,1721631041530,-501.28985794,0.00013698,2]
[332886052,1721631041540,-500.0,0.00013698,2]
[332886053,1721631041551,-286.0,0.00013698,2]
[332886054,1721631041566,-152.171668,0.00013698,2]
[332886055,1721631041577,-500.0,0.00013698,2]
[332886056,1721631041602,-500.0,0.00013698,2]
[332886057,1721631041615,-500.0,0.00013698,2]
[332886058,1721631041629,-500.0,0.00013698,2]
[332886059,1721631041642,-500.0,0.00013698,2]
[332886060,1721631041655,-500.0,0.00013698,2]
[332886061,1721631041668,-500.0,0.00013698,2]
[332886062,1721631041681,-500.0,0.00013698,2]
[332886063,1721631041693,-500.0,0.00013698,2]
[332886064,1721631041705,-543.61,0.00013698,2]
[332886065,1721631041718,-208.90016499,0.00013698,2]
[332886066,1721631041731,-500.0,0.00013698,2]
[332886067,1721631041744,-500.0,0.00013698,2]
[332886068,1721631041755,-500.0,0.00013698,2]
[332886069,1721631041768,-500.0,0.00013698,2]
[332886070,1721631041780,-500.0,0.00013698,2]
[332886071,1721631041792,-511.14918565,0.00013698,2]
[332886072,1721631041809,-500.0,0.00013698,2]
[332886073,1721631041822,-500.0,0.00013698,2]
[332886074,1721631041835,-185.50399782,0.00013698,2]
[332886075,1721631041849,-502.82359493,0.00013698,2]
[332886076,1721631041861,-500.0,0.00013698,2]
[332886077,1721631041872,-504.58831929,0.00013698,2]
[332886078,1721631041884,-378.02,0.00013698,2]
[332886079,1721631041896,-500.0,0.00013698,2]
[332886080,1721631041909,-506.16326635,0.00013698,2]
[332886081,1721631041922,-382.60396337,0.00013698,2]
[332886082,1721631041935,-503.2385378,0.00013698,2]
[332886083,1721631041947,-500.0,0.00013698,2]
[332886084,1721631041962,-232.33119763,0.00013698,2]
[332886085,1721631041974,-500.0,0.00013698,2]
[332886086,1721631041987,-357.68926405,0.00013698,2]
[332886087,1721631042000,-503.96036488,0.00013698,2]
[332886088,1721631042012,-504.04927958,0.00013698,2]
[332886089,1721631042024,-500.0,0.00013698,2]
[332886090,1721631042040,-500.0,0.00013698,2]
[332886091,1721631042051,-500.0,0.00013698,2]
[332886092,1721631042064,-503.68099825,0.00013698,2]
[332886093,1721631042079,-500.0,0.00013698,2]
[332886094,1721631042092,-517.00731958,0.00013698,2]
[332886095,1721631042105,-500.0,0.00013698,2]
[332886096,1721631042117,-505.86,0.00013698,2]
[332886097,1721631042130,-500.0,0.00013698,2]
[332886098,1721631042140,-500.0,0.00013698,2]
[332886099,1721631042151,-500.0,0.00013698,2]
[332886100,1721631042165,-500.0,0.00013698,2]
[332886101,1721631042175,-500.0,0.00013698,2]
[332886102,1721631042187,-500.0,0.00013698,2]
[332886103,1721631042200,-500.0,0.00013698,2]
[332886104,1721631042212,-500.0,0.00013698,2]
[332886105,1721631042224,-500.0,0.00013698,2]
[332886106,1721631042234,-500.0,0.00013698,2]
[332886107,1721631042245,-500.0,0.00013698,2]
[332886108,1721631042257,-554.35829598,0.00013698,2]
[332886109,1721631042270,-502.72463752,0.00013698,2]
[332886110,1721631042281,-506.78469845,0.00013698,2]
[332886111,1721631042292,-503.8121749,0.00013698,2]
[332886112,1721631042302,-506.51256414,0.00013698,2]